Cogmind - Beta 12 @@@ ROGUE MODE // 2023.12.07 @ 23:57:19 Player: babadi Result: Destroyed by G-34 Mercenary with Small Laser Performance ------------- Evolutions (1) 500 Regions Visited (3) 600 Robots Destroyed (16) 80 Value Destroyed (387) 387 Prototype IDs (1) 20 Alien Tech Used (0) 0 Bonus (0) 0 TOTAL SCORE: 1587 Bonus ------- None Cogmind --------- Core Integrity 0/400 Matter 290/300 Energy 90/125 System Corruption 0% Temperature Cool (6) Movement Core (450) Ox8 Location -9/Materials Parts ------- > --- POWER (1) -------- Light Ion Engine > --- PROPULSION (3) --- (None) > --- UTILITY (3) ------ Large Storage Unit > --- WEAPON (2) ------- Katana > --- INVENTORY (15) --- Light Treads Light Treads Armored Wheel Heat Sink Disposable Heat Sink Large Storage Unit Light Armor Plating EM Pulse Gun Light Assault Rifle Peak State ------------ > --- POWER ------------ Ion Engine > --- PROPULSION ------- Light Treads Wheel Armored Wheel > --- UTILITY ---------- Large Storage Unit Sensor Array Thief Drone Bay > --- WEAPON ----------- Beam Rifle Beam Cannon > --- INVENTORY -------- Ion Engine Light Ion Engine Light Treads Light Treads Wheel Armored Wheel Heat Sink Disposable Heat Sink Large Storage Unit EM Pulse Gun Medium Laser Light Assault Rifle [Rating: 18] Favorites ----------- Power Ion Engine Engine Ion Engine Propulsion Light Treads Treads Light Treads Wheel Wheel Utility Large Storage Unit Device Thief Drone Bay Storage Large Storage Unit Weapon Light Assault Rifle Energy Gun Beam Rifle Energy Cannon Beam Cannon Ballistic Gun Light Assault Rifle Ballistic Cannon Light Cannon Slashing Weapon Katana Build | -11 -10 -10 -9 ------- Run | Jun Mat Min Mat Slots Evolved 2 | . . . 2 Power . | . . . . Propulsion 1 | . . . 1 Utility 1 | . . . 1 Weapon . | . . . . Parts Attached 21 | 5 3 2 11 Power 3 | 1 . . 2 Engine 3 | 1 . . 2 Core . | . . . . Reactor . | . . . . Propulsion 6 | 2 . . 4 Treads 3 | 1 . . 2 Leg . | . . . . Wheel 3 | 1 . . 2 Hover . | . . . . Flight . | . . . . Utility 6 | 1 2 1 2 Device 2 | . . 1 1 Storage 4 | 1 2 . 1 Processor . | . . . . Hackware . | . . . . Protection . | . . . . Artifact . | . . . . Weapon 6 | 1 1 1 3 Energy Gun 2 | . . . 2 Energy Cannon 1 | . . 1 . Ballistic Gun 1 | 1 . . . Ballistic Cannon 1 | . 1 . . Launcher . | . . . . Special Weapon . | . . . . Impact Weapon . | . . . . Slashing Weapon 1 | . . . 1 Piercing Weapon . | . . . . Special Melee Weapon . | . . . . Unidentified Prototypes 1 | . . 1 . Parts Lost 14 | . . 1 13 Power 2 | . . . 2 Propulsion 5 | . . . 5 Utility 2 | . . . 2 Weapon 5 | . . 1 4 Highest Loss Streak 12 | . . 1 12 To Critical Strikes . | . . . . Average Slot Usage (%) 93 | . 75 99 93 Engine 13 | . 14 14 10 Treads 13 | . 14 14 10 Wheel 15 | . 14 14 20 Device 12 | . . 13 20 Storage 13 | . 14 14 11 Energy Cannon 4 | . . 4 9 Ballistic Gun 12 | . 14 14 7 Ballistic Cannon 6 | . 4 9 . Naked Turns . | . . . . Heaviest Build 36 | 11 29 33 36 Greatest Support 22 | 20 10 10 22 Greatest Overweight (x) 3 | 3 2 3 3 Average Overweight (x) 2 | 1 1 2 1 Largest Inventory Capacity 15 | 8 15 15 15 Average Capacity 14 | 7 14 15 15 Most Carried 14 | 5 7 10 14 Average Carried 8 | 2 5 9 11 Final Capacity 15 | 8 15 15 15 Final Carried 9 | 5 6 9 9 Class Distribution -------------------- 100% | Mutant Dominant Class ---------------- Mutant | -10/Materials Mutant | -10/Mines Mutant | -9/Materials Resources | -11 -10 -10 -9 ----------- Run | Jun Mat Min Mat Matter Collected 448 | 196 111 52 89 Remotely . | . . . . Salvage Created 455 | . 65 67 323 Parts 25 | . 3 4 18 Haulers Intercepted . | . . . . Recyclers Shooed . | . . . . Parts Field Recycled . | . . . . Retrieved Matter . | . . . . Parts Self-Destructed . | . . . . Prevented . | . . . . Kills | -11 -10 -10 -9 ------- Run | Jun Mat Min Mat Combat Hostiles Destroyed 16 | . 2 5 9 Guns 8 | . 1 . 7 Cannons 8 | . 1 5 2 Classes Destroyed 4 | . 1 1 2 Swarmer 8 | . . 5 3 Grunt 5 | . 2 . 3 Duelist 1 | . . . 1 Sentry 2 | . . . 2 Best Kill Streak 4 | . 2 2 4 Combat Bots Only 4 | . 2 2 4 Max Kills in Single Turn 2 | . 1 1 2 Gunslinging 1 | . . . 1 Exploded . | . . . . Melee . | . . . . Uniques/NPCs Destroyed . | . . . . Combat | -11 -10 -10 -9 -------- Run | Jun Mat Min Mat Damage Taken 1774 | . 172 124 1478 Core 445 | . 35 8 402 Absorbed by Shields . | . . . . Core Remaining (%) 91 | 100 . 82 . Volleys Fired 39 | . 6 10 23 Largest 2 | . 2 2 2 Hottest 116 | . 55 80 116 Shots Fired 76 | . 12 20 44 Gun 47 | . 6 10 31 Cannon 29 | . 6 10 13 Launcher . | . . . . Special . | . . . . Kinetic 35 | . 12 15 8 Thermal 41 | . . 5 36 Explosive . | . . . . Electromagnetic . | . . . . Robot Hit Streak 8 | . 7 6 8 Robot Miss Streak 2 | . 1 2 2 Penetration Max . | . . . . Secondary Targets 3 | . . . 3 Max Gunslinging Chain 1 | . . . 1 Shots Hit Robots 58 | . 9 14 35 Core Hits 24 | . 2 8 14 Critical Kills . | . . . . Critical Parts Destroyed . | . . . . Critical Strikes 3 | . . 2 1 Burn 1 | . . . 1 Blast 2 | . . 2 . Melee Attacks 6 | . . . 6 Impact . | . . . . Slashing 6 | . . . 6 Piercing . | . . . . Sneak Attacks . | . . . . Combat Hostiles . | . . . . Follow-up Attacks . | . . . . Damage Inflicted 869 | . 136 193 540 Guns 370 | . 44 51 275 Cannons 408 | . 92 142 174 Explosions . | . . . . Melee 91 | . . . 91 Ramming . | . . . . Kinetic 287 | . 136 124 27 Thermal 491 | . . 69 422 Explosive . | . . . . Electromagnetic . | . . . . Impact . | . . . . Slashing 91 | . . . 91 Piercing . | . . . . Highest Corruption . | . . . . Average Corruption . | . . . . Corruption Purged . | . . . . Corruption Blocked . | . . . . Overload Shots . | . . . . Overflow Damage 15 | . 15 . . Projectiles 15 | . 15 . . Explosions . | . . . . Melee . | . . . . Knockbacks 2 | . 2 . . Impact . | . . . . Kinetic 1 | . 1 . . Secondary 1 | . 1 . . Self-Inflicted Damage . | . . . . Shots . | . . . . Rammed . | . . . . Targets Rammed . | . . . . Kicked . | . . . . Crushed . | . . . . Highest Temperature 174 | . 40 100 174 Average Temperature 62 | . 18 33 76 Received Heat Transfer 702 | . 60 . 642 Siege Activations . | . . . . Robots Corrupted . | . . . . Combat Hostiles . | . . . . Parts Fried . | . . . . Impact Corruptions . | . . . . Robots Melted . | . . . . Combat Hostiles . | . . . . Parts Melted 2 | . . . 2 Heat Transferred 1258 | . . 148 1110 Parts Sabotaged . | . . . . Parts Stolen . | . . . . Parts Stripped . | . . . . Power Chain Reactions . | . . . . Missiles Intercepted . | . . . . Alert | -11 -10 -10 -9 ------- Run | Jun Mat Min Mat Peak Influence 129 | . 75 113 129 Initial 31 | . . 28 31 Average 47 | . 16 46 76 Maximum Alert Level . | . . . . Low Security (%) 100 | 100 100 100 100 Level 1 . | . . . . Level 2 . | . . . . Level 3 . | . . . . Level 4 . | . . . . Level 5 . | . . . . High Security . | . . . . Max Security . | . . . . Squads Dispatched 3 | . 2 . 1 Investigation 1 | . 1 . . Extermination . | . . . . Reinforcement 2 | . 1 . 1 Assault . | . . . . Garrison . | . . . . Intercept . | . . . . Searches Triggered . | . . . . Construction Impeded . | . . . . Haulers Reinforced . | . . . . Active Scanning Responses . | . . . . Cargo Convoy Interrupts . | . . . . Stealth | -11 -10 -10 -9 --------- Run | Jun Mat Min Mat Distress Signals . | . . . . Communications Jammed . | . . . . Distress Signals . | . . . . Times Spotted 35 | . 11 8 16 Peak Tracking Total 9 | . 9 3 7 Tactical Retreats 5 | . . 4 1 Traps | -11 -10 -10 -9 ------- Run | Jun Mat Min Mat Traps Triggered 1 | . 1 . . Indirectly . | . . . . Trap Hack Attempts . | . . . . Triggered . | . . . . Disarmed . | . . . . Reprogrammed . | . . . . Reused . | . . . . Traps Extracted . | . . . . Installed . | . . . . Triggered . | . . . . Machines | -11 -10 -10 -9 ---------- Run | Jun Mat Min Mat Machines Disabled . | . . . . Max in Single Turn . | . . . . Machines Repaired . | . . . . Machines Sabotaged . | . . . . Overloaded Fab Kills . | . . . . Hacking | -11 -10 -10 -9 --------- Run | Jun Mat Min Mat Machines Accessed 6 | . 4 1 1 Terminals 3 | . 2 . 1 Fabricators . | . . . . Repair Stations . | . . . . Recycling Units 2 | . 2 . . Scanalyzers . | . . . . Garrison Access . | . . . . Total Hacks 13 | . 10 1 2 Successful 10 | . 7 1 2 Failed 3 | . 3 . . Catastrophic 1 | . 1 . . Database Lockouts . | . . . . Manual 8 | . 6 . 2 Terminals 9 | . 7 . 2 Fabricators . | . . . . Repair Stations . | . . . . Recycling Units 3 | . 3 . . Scanalyzers . | . . . . Garrison Access . | . . . . Terminal Hacks 5 | . 3 1 1 Open Door 1 | . . 1 . Branch Access Points 1 | . 1 . . Maintenance Status 2 | . 1 . 1 Zone Layout 1 | . 1 . . Fabricator Hacks . | . . . . Repair Station Hacks . | . . . . Recycling Unit Hacks 3 | . 3 . . Retrieve Components 3 | . 3 . . Scanalyzer . | . . . . Garrison Access Hacks . | . . . . Unauthorized Hacks 2 | . 1 . 1 Terminals 2 | . 1 . 1 Botnet 2 | . 1 . 1 Fabricators . | . . . . Repair Stations . | . . . . Recycling Units . | . . . . Scanalyzers . | . . . . Garrison Access . | . . . . Data Cores Recovered . | . . . . Used . | . . . . Hacking Detections 2 | . 1 . 1 Full Trace Events . | . . . . Feedback Events . | . . . . Feedback Blocked . | . . . . Robot Schematics Acquired . | . . . . Robots Built . | . . . . Authchips . | . . . . Time . | . . . . Total Robot Build Rating . | . . . . Part Schematics Acquired . | . . . . Parts Built . | . . . . Authchips . | . . . . Time . | . . . . Total Part Build Rating . | . . . . Parts Repaired . | . . . . Time . | . . . . Parts Recycled . | . . . . Recycled Matter . | . . . . Retrieved Matter . | . . . . Retrieved Components 5 | . 5 . . Parts Scanalyzed . | . . . . Part Schematics Acquired . | . . . . Parts Damaged . | . . . . Bothacking | -11 -10 -10 -9 ------------ Run | Jun Mat Min Mat Used RIF Installer . | . . . . Robots Hacked . | . . . . Non-combat . | . . . . Combat . | . . . . Robot Hacks Applied . | . . . . Relay Couplers Released . | . . . . Fabnet Peak Effective % . | . . . . Robots Rewired . | . . . . Allies Hacked . | . . . . Hacks Repelled . | . . . . Allies | -11 -10 -10 -9 -------- Run | Jun Mat Min Mat Total Allies . | . . . . Largest Group . | . . . . Highest-Rated Group . | . . . . Highest-Rated Ally . | . . . . Total Orders 1 | . . 1 . EXPLORE 1 | . . 1 . Ally Attacks 3 | . . 3 . Total Damage . | . . . . Kills . | . . . . Allies Corrupted . | . . . . Allies Melted . | . . . . Intel | -11 -10 -10 -9 ------- Run | Jun Mat Min Mat Robot Analysis Total . | . . . . Derelict Logs Recovered 3 | . . 3 . Drone Launches 1 | . . 1 . Drone Recoveries 1 | . . 1 . Exploration | -11 -10 -10 -9 ------------- Run | Jun Mat Min Mat Turns Passed 2159 | 61 384 1165 549 Spaces Moved 1025 | 44 181 604 196 Core 5 | 5 . . . Treads 85 | 4 . . 81 Legs . | . . . . Wheels 935 | 35 181 604 115 Hover . | . . . . Flight . | . . . . Fastest Speed 50 | 50 95 110 100 Average Speed 127 | 107 109 124 160 Slowest Speed 240 | 200 110 125 240 Overloaded Moves . | . . . . Propulsion Burnouts . | . . . . Robots Hopped . | . . . . Cave-ins Triggered . | . . . . Exploration Rate (%) 40 | 3 41 100 16 Regions Visited 3 Branch Regions 1 Pre-discovered Areas 1 | . . 1 . Known Exits Taken 1 | . 1 . . Unknown Exits Taken 2 | 1 . 1 . Scrap Searched 1 | . . 1 . Spaces Dug . | . . . . Terrain Destroyed . | . . . . Melee . | . . . . Projectile . | . . . . AOE . | . . . . Terrain Rammed . | . . . . Walls Destroyed . | . . . . Machines Disabled . | . . . . Actions | -11 -10 -10 -9 --------- Run | Jun Mat Min Mat Total 1790 | 55 357 1001 377 Wait 680 | 2 161 382 135 Move 1022 | 43 180 603 196 Hop . | . . . . Pick Up 19 | 5 4 4 6 Fast Attach 8 | 5 1 . 2 Attach 10 | . 1 2 7 Detach . | . . . . Swap 3 | . 1 . 2 Drop 3 | . 3 . . Fire 39 | . 6 10 23 Melee 6 | . . . 6 Ram . | . . . . Kick . | . . . . Crush . | . . . . Escape Stasis . | . . . . Rewire . | . . . . Trap . | . . . . Miscellaneous . | . . . . Route ------- -11/Junkyard -10/Materials (discovered 3 exits: *Mat / *Min x2) -10/Mines (discovered 2 exits: *Mat x2) -9/Materials (discovered 4 exits: Mat x2 / Min x2) History --------- Turn | Location | Event 8 | -11/Junkyard | Discovered new exit (range 15) 62 | -11/Junkyard | Entered Materials 111 | -10/Materials | Identified exit to Mines 308 | -10/Materials | Build established: Mutant 334 | -10/Materials | Discovered new exit (range 15) 446 | -10/Materials | Entered Mines 478 | -10/Mines | Found the Drone Emporium 483 | -10/Mines | Found Prototype Device 484 | -10/Mines | Identified Thief Drone Bay 582 | -10/Mines | Discovered new exit (range 8) 720 | -10/Mines | Learned location of Storage (-8) 734 | -10/Mines | Discovered new exit (range 10) 1493 | -10/Mines | Learned location of 2 exits from Materials 1611 | -10/Mines | Entered Materials 1611 | -9/Materials | Evolved 2 slots: Propulsion x1, Utility x1 1612 | -9/Materials | Identified exit to Mines 1613 | -9/Materials | Identified exit to Materials 2139 | -9/Materials | Core integrity fell below 50% 2155 | -9/Materials | Core integrity fell below 20% 2160 | -9/Materials | Destroyed by G-34 Mercenary with Small Laser Last Messages --------------- 02091_ Wheel destroyed. 02097_ S-10 Pest destroyed. 02097_ Switching to secondary target: G-34 Mercenary. 02103_ Acquired 15 matter. 02106_ Acquired 1 matter. 02107_ Sensor Array destroyed. 02119_ Lgt. Treads destroyed. 02120_ Arm. Wheel destroyed. 02123_ L-31 Rogue destroyed. 02123_ Switching to secondary target: G-34 Mercenary. 02123_ G-34 Mercenary destroyed. 02125_ Thief Drone Bay destroyed. 02128_ Acquired 20 matter. 02131_ Med. Laser destroyed. 02132_ Beam Rifle destroyed. 02133_ Acquired Katana. 02134_ Ion Engine destroyed. 02134_ Acquired 5 matter. 02151_ Lgt. Treads destroyed. 02155_ Wheel destroyed. Map ----- +----------------------------------------------------+ | ??????????#^ # #???????????? | | ??????????# ## ##???????????? | | ??????????# %% ## #????????????? | | ??????????######+##### #????????????? | | ??????????????## ##### #????????????? | | ?????????###### #????????????? | | ?????????# #????????????? | | ?????????# #### #????????????? | | ?????????# #??# ########????????????? | | ?????????# #??# #???????????????????? | | ?????????# #??# #???????????????????? | | ?????????# #??# #???????????????????? | | ?????????# #??# #???????????????????? | | ???#######+#### #???????????????????? | | ???# ## #???????????????????? | | ???# # ???????????????????? | | ???# # ???????????????????? | | ???# !!| + ???????????????????? | | ???# !|| # ???????????????????? | | ???#%"T" !||=# #??????????????????? | | ??## """[%=% # ###????????????????????? | | ??# !%= # #??????????????????????? | | ??#######+####o#??????????????????????? | | ????????#[#??# #??????????????????????? | | ????????# #### ###????????????????????? | | ????????# %=%@ g#????????????????????? | | ????????# =[= #????????????????????? | | ????????# g ???????????????? | | ?????? T gg ###??????????????? | | ?????# #????????????????? | | ?????# """ #????????????????? | | ?????+ """ #????????????????? | | ?????# """ #????????????????? | | ?????# ???????????????? | | ?????+ ? ??????????????? | | ?????# ?? = ?????????????? | | ?????# ???? ?????????????? | | ?????+ ## ##"T????!??????????????? | | ?????#### ?# #??????????????????????? | | ????????# ?# #??????????????????????? | | ????????? ?? ???????????????????????? | | ??????????????????????????????????????? | | ??????????????????????????????????????? | | ??????????????????????????????????????? | | ??????????????????????????????????????? | | ??????????????????????????????????????? | | ??????????????????????????????????????? | | ??????????????????????????????????????? | | ??????????????????????????????????????? | | ??????????????????????????????????????? | +----------------------------------------------------+ Best States ------------- Heat Dissipation 28 Energy Generation 10 Energy Capacity 250 Matter Stores 300 Matter Capacity 300 Sight Range 16 Robot Scan Range 14 Terrain Scan Density 10 Evasion (%) 41 Recoil Reduction 1 Item Schematics ----------------- None Robot Schematics ------------------ None Fabricated ------------ Nothing Alien Tech Used ----------------- None Achievements -------------- None Challenges ------------ None Game ------ Seed WardroneAblativeChronowheel Manual? 0 Play Time 00:20:38 Cumulative 26.0 hours Start 2023.12.07 @ 23:36:04 End 2023.12.07 @ 23:57:19 Sessions 1 Manual Loads 0 Difficulty Rogue Special Mode None Game No. 13 Rogue 13 Adventurer 0 Explorer 0 Win Type - Total 0 Types 0/0/0/0/0/0/0/0/0 Lore% 16 Gallery% 16 Achievement% 20 Wizard Run 0 Options --------- ASCII 0 Keyboard 0 Movement Mouse Keybinds 0 Fullscreen 1 Font 12/Tallcaps Map View 83x54 Tactical HUD 1 Map Filters NONE Filters NONE Steam 1 RUN: 118fde87-191d-4f6e-9352-83964e64eeb3